fUSD/lending_fUSD_20251003
["ID","MTS","AMOUNT","RATE_DAILY","PERIOD"]
[388889869,1759470659420,-151.0,0.00022079,7]
[388889870,1759470659429,-151.0,0.00022079,7]
[388889871,1759470659439,-151.0,0.00022079,7]
[388889872,1759470659448,-152.294138,0.00022079,7]
[388889873,1759470659458,-151.0,0.00022079,7]
[388889874,1759470659467,-151.0,0.00022079,7]
[388889875,1759470659476,-151.0,0.00022079,7]
[388889876,1759470659486,-151.0,0.00022079,7]
[388889877,1759470659495,-151.0,0.00022079,7]
[388889878,1759470659504,-151.0,0.00022079,7]
[388889879,1759470659514,-151.0,0.00022079,7]
[388889880,1759470659523,-151.0,0.00022079,7]
[388889881,1759470659533,-151.0,0.00022079,7]
[388889882,1759470659542,-151.0,0.00022079,7]
[388889883,1759470659552,-151.0,0.00022079,7]
[388889884,1759470659562,-154.503617,0.00022079,7]
[388889885,1759470659572,-151.0,0.00022079,7]
[388889886,1759470659582,-152.246552,0.00022079,7]
[388889887,1759470659591,-151.0,0.00022079,7]
[388889888,1759470659603,-151.0,0.00022079,7]
[388889889,1759470659613,-151.0,0.00022079,7]
[388889890,1759470659623,-151.0,0.00022079,7]
[388889891,1759470659633,-151.0,0.00022079,7]
[388889892,1759470659643,-151.0,0.00022079,7]
[388889893,1759470659654,-151.0,0.00022079,7]
[388889894,1759470659663,-151.0,0.00022079,7]
[388889895,1759470659672,-151.0,0.00022079,7]
[388889896,1759470659682,-300.0,0.00022079,2]
[388889897,1759470659691,-666.0,0.00022079,2]
[388889898,1759470659700,-151.0,0.00022079,7]
[388889899,1759470659709,-151.0,0.00022079,7]
[388889900,1759470659719,-151.0,0.00022079,7]
[388889901,1759470659729,-151.0,0.00022079,7]
[388889902,1759470659742,-151.0,0.00022079,7]
[388889903,1759470659752,-151.0,0.00022079,7]
[388889904,1759470659761,-151.0,0.00022079,7]
[388889905,1759470659771,-151.0,0.00022079,7]
[388889906,1759470659780,-151.0,0.00022079,7]
[388889907,1759470659790,-151.0,0.00022079,7]
[388889908,1759470659799,-151.0,0.00022079,7]
[388889909,1759470659808,-161.687725,0.00022079,7]
[388889910,1759470659819,-151.0,0.00022079,7]
[388889911,1759470659829,-152.452874,0.00022079,7]
[388889912,1759470659839,-151.0,0.00022079,7]
[388889913,1759470659851,-151.0,0.00022079,7]
[388889914,1759470659861,-151.0,0.00022079,7]
[388889915,1759470659871,-164.882579,0.00022079,7]
[388889916,1759470659882,-151.0,0.00022079,7]
[388889917,1759470659892,-151.0,0.00022079,7]
[388889918,1759470659901,-151.0,0.00022079,7]
[388889919,1759470659910,-152.294112,0.00022079,7]
[388889920,1759470659920,-151.0,0.00022079,7]
[388889921,1759470659930,-151.0,0.00022079,7]
[388889922,1759470659941,-233.927017,0.00022079,7]
[388889923,1759470659950,-151.0,0.00022079,7]
[388889924,1759470659959,-151.0,0.00022079,7]
[388889925,1759470659968,-151.0,0.00022079,7]
[388889926,1759470659977,-151.0,0.00022079,7]
[388889927,1759470659987,-151.0,0.00022079,7]
[388889928,1759470659996,-151.0,0.00022079,7]
[388889929,1759470660005,-151.0,0.00022079,7]
[388889930,1759470660015,-244.758012,0.00022079,7]
[388889931,1759470660026,-151.0,0.00022079,7]
[388889932,1759470660037,-151.0,0.00022079,7]
[388889933,1759470660047,-151.0,0.00022079,7]
[388889934,1759470660057,-151.0,0.00022079,7]
[388889935,1759470660067,-151.0,0.00022079,7]
[388889936,1759470660077,-151.0,0.00022079,7]
[388889937,1759470660087,-151.0,0.00022079,7]
[388889938,1759470660097,-151.0,0.00022079,7]
[388889939,1759470660106,-158.864252,0.00022079,7]
[388889940,1759470660116,-151.0,0.00022079,7]
[388889941,1759470660125,-151.0,0.00022079,7]
[388889942,1759470660135,-151.0,0.00022079,7]
[388889943,1759470660144,-151.0,0.00022079,7]
[388889944,1759470660154,-151.0,0.00022079,7]
[388889945,1759470660163,-151.0,0.00022079,7]
[388889946,1759470660173,-157.481175,0.00022079,7]
[388889947,1759470660183,-157.481175,0.00022079,7]
[388889948,1759470660192,-157.481175,0.00022079,7]
[388889949,1759470660202,-157.481175,0.00022079,7]
[388889950,1759470660211,-152.975929,0.00022079,7]
[388889951,1759470660222,-571.456451,0.00022079,7]
[388889952,1759470660231,-151.0,0.00022079,7]
[388889953,1759470660241,-571.456451,0.00022079,7]
[388889954,1759470660251,-151.0,0.00022079,7]
[388889955,1759470660261,-151.0,0.00022079,7]
[388889956,1759470660271,-151.0,0.00022079,7]
[388889957,1759470660284,-571.456451,0.00022079,7]
[388889958,1759470660294,-152.970272,0.00022079,7]
[388889959,1759470660303,-151.0,0.00022079,7]
[388889960,1759470660313,-151.0,0.00022079,7]
[388889961,1759470660323,-307.929278,0.00022079,7]
[388889962,1759470660332,-571.456451,0.00022079,7]
[388889963,1759470660341,-151.910687,0.00022079,7]
[388889964,1759470660351,-151.0,0.00022079,7]
[388889965,1759470660361,-307.929278,0.00022079,7]
[388889966,1759470660371,-307.929278,0.00022079,7]
[388889967,1759470660381,-152.612538,0.00022079,7]
[388889968,1759470660391,-307.929278,0.00022079,7]
[388889969,1759470660400,-151.0,0.00022079,7]
[388889970,1759470660410,-151.0,0.00022079,7]
[388889971,1759470660420,-151.0,0.00022079,7]
[388889972,1759470660431,-161.348386,0.00022079,7]
[388889973,1759470660441,-161.348386,0.00022079,7]
[388889974,1759470660451,-151.0,0.00022079,7]
[388889975,1759470660460,-161.348386,0.00022079,7]
[388889976,1759470660471,-161.348386,0.00022079,7]
[388889977,1759470660480,-151.0,0.00022079,7]
[388889978,1759470660490,-151.0,0.00022079,7]
[388889979,1759470660499,-151.0,0.00022079,7]
[388889980,1759470660509,-151.0,0.00022079,7]
[388889981,1759470660518,-151.0,0.00022079,7]
[388889982,1759470660528,-151.0,0.00022079,7]
[388889983,1759470660538,-151.0,0.00022079,7]
[388889984,1759470660547,-272.09194,0.00022079,7]
[388889985,1759470660556,-231.560857,0.00022079,7]
[388889986,1759470660566,-231.560857,0.00022079,7]
[388889987,1759470660575,-151.0,0.00022079,7]
[388889988,1759470660585,-231.560857,0.00022079,7]
[388889989,1759470660594,-180.269796,0.00022079,7]
[388889990,1759470660603,-231.560857,0.00022079,7]
[388889991,1759470660614,-151.0,0.00022079,7]
[388889992,1759470660623,-180.269796,0.00022079,7]
[388889993,1759470660632,-180.269796,0.00022079,7]
[388889994,1759470660641,-151.0,0.00022079,7]
[388889995,1759470660651,-180.269796,0.00022079,7]
[388889996,1759470660660,-151.0,0.00022079,7]
[388889997,1759470660669,-151.0,0.00022079,7]
[388889998,1759470660679,-151.0,0.00022079,7]
[388889999,1759470660688,-153.391159,0.00022079,7]
[388890000,1759470660698,-151.0,0.00022079,7]
[388890001,1759470660707,-151.0,0.00022079,7]
[388890002,1759470660717,-300.0,0.00022079,2]
[388890003,1759470660726,-10034.07071037,0.00022079,2]
[388890004,1759470660736,-257.295595,0.00022079,7]
[388890005,1759470660746,-257.295595,0.00022079,7]
[388890006,1759470660755,-257.295595,0.00022079,7]
[388890007,1759470660764,-151.0,0.00022079,7]
[388890008,1759470660775,-257.295595,0.00022079,7]
[388890009,1759470660784,-151.0,0.00022079,7]
[388890010,1759470660794,-151.0,0.00022079,7]
[388890011,1759470660804,-151.0,0.00022079,7]
[388890012,1759470660813,-151.0,0.00022079,7]
[388890013,1759470660822,-1591.76695,0.00022079,7]
[388890014,1759470660832,-480.840927,0.00022079,7]
[388890015,1759470660842,-1591.76695,0.00022079,7]
[388890016,1759470660852,-377.470636,0.00022079,7]
[388890017,1759470660861,-377.470636,0.00022079,7]
[388890018,1759470660871,-1591.76695,0.00022079,7]
[388890019,1759470660880,-471.846776,0.00022079,7]
[388890020,1759470660890,-377.470636,0.00022079,7]
[388890021,1759470660899,-1591.76695,0.00022079,7]
[388890022,1759470660908,-480.840927,0.00022079,7]
[388890023,1759470660917,-471.846776,0.00022079,7]
[388890024,1759470661054,-377.470636,0.00022079,7]
[388890025,1759470661064,-471.846776,0.00022079,7]
[388890026,1759470661074,-480.840927,0.00022079,7]
[388890027,1759470661085,-154.654566,0.00022079,7]
[388890028,1759470661094,-480.840927,0.00022079,7]
[388890029,1759470661103,-778.977845,0.00022079,7]
[388890030,1759470661113,-778.977845,0.00022079,7]
[388890031,1759470661123,-778.977845,0.00022079,7]
[388890032,1759470661133,-153.113179,0.00022079,7]
[388890033,1759470661144,-778.977845,0.00022079,7]
[388890034,1759470661154,-471.846776,0.00022079,7]
[388890035,1759470661164,-218.368516,0.00022079,7]
[388890036,1759470661173,-480.876433,0.00022079,7]
[388890037,1759470661183,-218.368516,0.00022079,7]
[388890038,1759470661193,-480.876433,0.00022079,7]
[388890039,1759470661202,-151.0,0.00022079,7]
[388890040,1759470661211,-218.368516,0.00022079,7]
[388890041,1759470661221,-151.0,0.00022079,7]
[388890042,1759470661230,-218.368516,0.00022079,7]
[388890043,1759470661241,-480.876433,0.00022079,7]
[388890044,1759470661250,-480.876433,0.00022079,7]
[388890045,1759470661260,-172.130651,0.00022079,7]
[388890046,1759470661270,-245.554221,0.00022079,7]
[388890047,1759470661280,-151.0,0.00022079,7]
[388890048,1759470661290,-555.929461,0.00022079,7]
[388890049,1759470661299,-555.929461,0.00022079,7]
[388890050,1759470661308,-555.929461,0.00022079,7]
[388890051,1759470661318,-265.065136,0.00022079,7]
[388890052,1759470661328,-555.929461,0.00022079,7]
[388890053,1759470661337,-151.0,0.00022079,7]
[388890054,1759470661347,-151.0,0.00022079,7]
[388890055,1759470661356,-151.0,0.00022079,7]
[388890056,1759470661366,-151.0,0.00022079,7]
[388890057,1759470661376,-151.0,0.00022079,7]
[388890058,1759470661386,-216.06499,0.00022079,7]
[388890059,1759470661395,-216.06499,0.00022079,7]
[388890060,1759470661406,-151.0,0.00022079,7]
[388890061,1759470661415,-216.06499,0.00022079,7]
[388890062,1759470661425,-216.06499,0.00022079,7]
[388890063,1759470661435,-151.0,0.00022079,7]
[388890064,1759470661444,-151.0,0.00022079,7]
[388890065,1759470661453,-151.0,0.00022079,7]
[388890066,1759470661463,-151.0,0.00022079,7]
[388890067,1759470661472,-151.0,0.00022079,7]
[388890068,1759470661481,-151.0,0.00022079,7]
[388890069,1759470661491,-1651.809374,0.00022079,7]
[388890070,1759470661500,-1651.809374,0.00022079,7]
[388890071,1759470661510,-1651.809374,0.00022079,7]
[388890072,1759470661520,-151.0,0.00022079,7]
[388890073,1759470661531,-1651.809384,0.00022079,7]
[388890074,1759470661541,-151.0,0.00022079,7]
[388890075,1759470661553,-175.329004,0.00022079,7]
[388890076,1759470661563,-175.329004,0.00022079,7]
[388890077,1759470661573,-175.329004,0.00022079,7]
[388890078,1759470661583,-151.0,0.00022079,7]
[388890079,1759470661594,-175.328994,0.00022079,7]
[388890080,1759470661603,-151.0,0.00022079,7]
[388890081,1759470661614,-151.0,0.00022079,7]
[388890082,1759470661624,-2331.684305,0.00022079,7]
[388890083,1759470661634,-151.0,0.00022079,7]
[388890084,1759470661644,-2331.684305,0.00022079,7]
[388890085,1759470661656,-285.672696,0.00022079,7]
[388890086,1759470661665,-151.0,0.00022079,7]
[388890087,1759470661676,-2331.684305,0.00022079,7]
[388890088,1759470661686,-285.672696,0.00022079,7]
[388890089,1759470661695,-285.672696,0.00022079,7]
[388890090,1759470661706,-285.672702,0.00022079,7]
[388890091,1759470661717,-2331.68430478,0.00022079,7]
[388890092,1759470661728,-6696.13,0.00022079,2]
[388890093,1759470661739,-580.0,0.00022079,2]
[388890094,1759470661751,-163596.95605404,0.0002208,2]
[388890095,1759470661761,-26208.57821224,0.0002208,2]
[388890096,1759470661771,-1000.0,0.0002208,2]
[388890097,1759470661786,-7927923.53172249,0.0002208,2]
[388890098,1759470662500,-799.20639771,0.0002198,2]
[388890099,1759470662510,-1233.46524301,0.0002208,2]
[388890100,1759470665684,-192.094338,0.0002188,2]
[388890101,1759470665694,-252.493439,0.0002188,2]
[388890102,1759470665704,-252.493439,0.00021978,7]
[388890103,1759470665715,-151.0,0.00021979,7]
[388890104,1759470665724,-252.493439,0.00021979,7]
[388890105,1759470665735,-151.0,0.0002198,7]
[388890106,1759470665749,-151.0,0.0002198,7]
[388890107,1759470665764,-252.493439,0.0002198,7]
[388890108,1759470665774,-252.493439,0.0002198,7]
[388890109,1759470665784,-2888.638467,0.0002208,2]
[388890110,1759470665799,-626.95004473,0.0002208,2]
[388890111,1759470665874,-6654.36241971,0.0002208,2]
[388890112,1759470666106,155.0,0.00030136,120]
[388890113,1759470666535,200.52,0.000165,2]
[388890118,1759470990042,500.0,0.00030136,120]
[388890119,1759470990281,500.0,0.00030136,120]
[388890122,1759471220546,1000.0,0.00016438,2]
[388890126,1759471373124,500.0,0.00030136,120]
[388890135,1759471543053,300.0,0.00030136,120]
[388890136,1759471558887,333.0,0.00030136,120]
[388890137,1759471573809,155.0,0.00030136,120]
[388890139,1759471584909,222.0,0.00030136,120]
[388890140,1759471594897,3291.77936187,0.00030137,120]
[388890143,1759471627076,155.0,0.00025,60]
[388890144,1759471647833,199.0,0.00030136,120]
[388890146,1759471702348,255.0,0.00030136,120]
[388890161,1759471833246,-250.0,0.00017,2]
[388890162,1759471833257,-651.10174643,0.000187,2]
[388890163,1759471833268,-304.89602276,0.000187,2]
[388890164,1759471833278,-666.0,0.00018978,3]
[388890165,1759471833287,-106.68254756,0.00019,2]
[388890166,1759471833299,-193.31745244,0.00019,2]
[388890167,1759471833309,-302.53,0.00019458,2]
[388890168,1759471833319,-182.7109848,0.000197,2]
[388890169,1759471833330,-370.55283938,0.00019725,2]
[388890170,1759471833339,-182.7109848,0.000199,2]
[388890171,1759471833349,-182.7109848,0.000201,2]
[388890172,1759471833359,-150.0,0.00020215,2]
[388890173,1759471833368,-255.0,0.0002034,2]
[388890174,1759471833377,-197.62982032,0.0002034,2]
[388890175,1759471833387,-288.0,0.0002039,2]
[388890176,1759471833397,-257.81,0.0002039,2]
[388890177,1759471833406,-155.0,0.00020465,2]
[388890178,1759471833416,-239.55129736,0.00020465,2]
[388890179,1759471833425,-222.0,0.00020492,2]
[388890180,1759471833435,-518.54,0.00020493,2]
[388890181,1759471833444,-200.0,0.00020498,2]
[388890182,1759471833454,-281.4727744,0.0002059,2]
[388890183,1759471833464,-258.0,0.00020603,2]
[388890184,1759471833474,-300.0,0.00020604,2]
[388890185,1759471833485,-200.42196961,0.00020605,2]
[388890186,1759471833494,-151.0,0.00020605,2]
[388890187,1759471833504,-151.0,0.00020605,2]
[388890188,1759471833513,-151.0,0.00020605,2]
[388890189,1759471833522,-151.0,0.00020605,2]
[388890190,1759471833532,-151.0,0.00020605,2]
[388890191,1759471833542,-151.0,0.00020605,2]
[388890192,1759471833551,-151.0,0.00020605,2]
[388890193,1759471833561,-151.0,0.00020605,2]
[388890194,1759471833571,-151.0,0.00020605,2]
[388890195,1759471833580,-151.0,0.00020605,2]
[388890196,1759471833590,-151.0,0.00020605,2]
[388890197,1759471833599,-151.0,0.00020605,2]
[388890198,1759471833608,-151.0,0.00020605,2]
[388890199,1759471833617,-151.0,0.00020605,2]
[388890200,1759471833627,-721.89,0.00020605,2]
[388890201,1759471833636,-2137.38,0.00020605,2]
[388890202,1759471833645,-640.85305163,0.00020617,2]
[388890203,1759471833658,-379.04248606,0.00020617,2]
[388890204,1759471833673,-5740.90580371,0.00020617,2]
[388890205,1759471833780,-2165.94410896,0.00020617,2]
[388890245,1759471839285,-21940.98587831,0.00020617,2]
[388890246,1759471839297,-701.82,0.00020617,2]
[388890247,1759471839392,-964.4442702,0.00020617,2]
[388890248,1759471839403,-865.69,0.00020617,2]
[388890249,1759471839477,-351.88118535,0.00020617,2]
[388890250,1759471839488,-486.52480477,0.00020617,2]
[388890251,1759471839521,-1163.21102148,0.00020617,2]
[388890255,1759471841824,-53129.40738953,0.00020617,2]
[388890256,1759471841834,-168.0,0.00020631,2]
[388890257,1759471841843,-515.86,0.000207,2]
[388890258,1759471841853,-500.0,0.000207,2]
[388890259,1759471841863,-223.40970936,0.000207,2]
[388890260,1759471841873,-323.39425143,0.00020714,2]
[388890261,1759471841882,-231.28369723,0.00020791,2]
[388890262,1759471841892,-1000.0,0.000208,2]
[388890263,1759471841902,-365.31572847,0.00020839,2]
[388890264,1759471841911,-250.0,0.00020876,2]
[388890265,1759471841921,-721.89,0.00020879,2]
[388890266,1759471841930,-2137.38,0.00020879,2]
[388890267,1759471841940,-367.18,0.000209,2]
[388890268,1759471841949,-407.23720551,0.00020964,2]
[388890269,1759471841959,-1000.0,0.00020986,2]
[388890270,1759471841968,-150.0,0.00021,2]
[388890271,1759471841978,-168.0,0.00021059,2]
[388890272,1759471841987,-449.15868255,0.00021089,2]
[388890273,1759471841996,-774.47,0.00021123,2]
[388890274,1759471842006,-753.81,0.00021123,2]
[388890275,1759471842015,-168.0,0.00021146,2]
[388890276,1759471842025,-721.89,0.00021153,2]
[388890277,1759471842035,-2137.38,0.00021153,2]
[388890278,1759471842045,-491.08015959,0.00021214,2]
[388890279,1759471842054,-300.0,0.00021228,2]
[388890280,1759471842063,-175.59,0.00021228,2]
[388890281,1759471842072,-2392.72,0.00021228,2]
[388890282,1759471842081,-303.78,0.00021228,2]
[388890283,1759471842091,-151.36,0.00021228,2]
[388890284,1759471842101,-167.81,0.00021228,2]
[388890285,1759471842110,-412.63,0.00021228,2]
[388890286,1759471842120,-500.0,0.00021248,2]
[388890287,1759471842129,-168.0,0.00021303,2]
[388890288,1759471842139,-533.00163662,0.00021339,2]
[388890289,1759471842148,-787.0,0.0002138,2]
[388890290,1759471842158,-2045.0,0.0002138,2]
[388890291,1759471842167,-603.0,0.0002138,2]
[388890292,1759471842177,-417.765,0.0002138,2]
[388890293,1759471842186,-1305.452,0.0002138,2]
[388890294,1759471842195,-1495.642,0.0002138,2]
[388890295,1759471842205,-4115.0,0.0002138,2]
[388890296,1759471842214,-6225.0,0.0002138,2]
[388890297,1759471842224,-1181.0,0.0002138,2]
[388890298,1759471842237,-721.89,0.00021427,2]
[388890299,1759471842246,-2137.38,0.00021427,2]
[388890300,1759471842255,-574.92311366,0.00021463,2]
[388890301,1759471842265,-175.59,0.00021534,2]
[388890302,1759471842274,-616.8445907,0.00021588,2]
[388890303,1759471842283,-359.0,0.00021697,2]
[388890304,1759471842293,-622.64,0.000217,7]
[388890305,1759471842302,-721.89,0.00021701,2]
[388890306,1759471842311,-2137.38,0.00021701,2]
[388890307,1759471842320,-658.76606774,0.00021713,2]
[388890308,1759471842330,-152.0,0.00021756,3]
[388890309,1759471842339,-1000.0,0.00021773,2]
[388890310,1759471842349,-753.622,0.000218,2]
[388890311,1759471842358,-150.299,0.00021826,2]
[388890312,1759471842367,-283.104,0.00021826,2]
[388890313,1759471842376,-150.282,0.00021836,2]
[388890314,1759471842385,-150.946,0.00021836,2]
[388890315,1759471842395,-150.218,0.00021836,2]
[388890316,1759471842404,-152.0,0.00021836,2]
[388890317,1759471842413,-150.098,0.00021836,2]
[388890318,1759471842423,-3399.0,0.00021836,2]
[388890319,1759471842432,-700.68754477,0.00021838,2]
[388890320,1759471842442,-506.5930902,0.00021859,2]
[388890321,1759471842451,-156.76375329,0.00021878,2]
[388890322,1759471842461,-404.72586255,0.0002188,2]
[388890323,1759471842470,-1008.0,0.000219,3]
[388890324,1759471842479,-1000.0,0.000219,3]
[388890325,1759471842489,-1000.0,0.000219,3]
[388890326,1759471842498,-1001.0,0.000219,5]
[388890327,1759471842508,-1001.0,0.000219,5]
[388890328,1759471842524,-54108.72676054,0.000219,2]
[388890329,1759471842662,-5369.05609397,0.000219,2]
[388890341,1759471846133,-1799.7,0.000219,2]
[388890342,1759471846144,-343796.12338228,0.000219,2]
[388890343,1759471846155,-818.35140669,0.000219,2]
[388890347,1759471846279,-4956.37229672,0.000219,2]
[388890348,1759471846291,-2295.12317871,0.000219,2]
[388890349,1759471846389,-118558.93922886,0.000219,2]
[388890350,1759471846398,-1000.0,0.000219,2]
[388890351,1759471846407,-1000.0,0.000219,2]
[388890352,1759471846417,-1000.0,0.000219,2]
[388890353,1759471846426,-1000.0,0.000219,2]
[388890354,1759471846435,-1000.0,0.000219,2]
[388890355,1759471846444,-1000.0,0.000219,2]
[388890356,1759471846454,-1000.0,0.000219,2]
[388890357,1759471846464,-1000.0,0.000219,2]
[388890358,1759471846474,-359.0,0.00021939,2]
[388890359,1759471846485,-2800.75544342,0.00021947,9]
[388890360,1759471846494,-742.60902181,0.00021963,2]
[388890361,1759471846504,-198.12853002,0.00021973,2]
[388890362,1759471846514,-161.87521219,0.00021973,2]
[388890363,1759471846523,-5000.0,0.00021973,2]
[388890364,1759471846533,-322893.69446671,0.00021973,2]
[388890365,1759471846542,-721.95,0.00021975,2]
[388890366,1759471846551,-2137.38,0.00021975,2]
[388890367,1759471846561,-1690.285813,0.0002198,2]
[388890368,1759471846571,-160.00508668,0.0002198,2]
[388890369,1759471846580,-1815.45726188,0.0002198,2]
[388890370,1759471846591,-258.11819052,0.00021995,2]
[388890371,1759471846600,-1247.25980568,0.00022,2]
[388890372,1759471846610,-150.0,0.00022,2]
[388890373,1759471846620,-214.1,0.00022,2]
[388890374,1759471846630,-2000.0,0.00022,2]
[388890375,1759471846641,-1014.22,0.00022,2]
[388890376,1759471846650,-150.0,0.00022041,2]
[388890377,1759471846660,-150.0,0.00022041,2]
[388890378,1759471846669,-264.51174908,0.00022041,2]
[388890379,1759471846679,-150.0,0.00022041,2]
[388890380,1759471846688,-150.0,0.00022041,2]
[388890381,1759471846698,-150.0,0.00022041,2]
[388890382,1759471846707,-151.60681537,0.00022041,2]
[388890383,1759471846717,-150.0,0.00022041,2]
[388890384,1759471846727,-500.0,0.00022041,2]
[388890385,1759471846736,-500.0,0.00022041,2]
[388890386,1759471846746,-500.0,0.00022041,2]
[388890387,1759471846755,-500.0,0.00022041,2]
[388890388,1759471846765,-204.5524492,0.00022041,2]
[388890389,1759471846774,-1812.0,0.00022041,2]
[388890390,1759471846784,-167.84,0.0002205,2]
[388890391,1759471846793,-412.7,0.0002205,2]
[388890392,1759471846803,-175.62,0.0002205,2]
[388890393,1759471846812,-167.84,0.0002205,2]
[388890394,1759471846822,-545.4,0.0002205,2]
[388890395,1759471846831,-167.81,0.0002205,2]
[388890396,1759471846841,-545.29,0.0002205,2]
[388890397,1759471846851,-354.55,0.0002205,2]
[388890398,1759471846860,-150.91,0.0002207,2]
[388890399,1759471846870,-501.92035451,0.00022073,2]
[388890400,1759471846879,-501.69432396,0.00022073,2]
[388890401,1759471846888,-500.0,0.00022073,2]
[388890402,1759471846898,-166.80839917,0.00022073,2]
[388890403,1759471846907,-501.66003084,0.00022073,2]
[388890404,1759471846916,-504.53157012,0.00022073,2]
[388890405,1759471846925,-501.62801927,0.00022073,2]
[388890406,1759471846936,-500.39233817,0.00022073,2]
[388890407,1759471846946,-500.0,0.00022073,2]
[388890408,1759471846955,-500.95829268,0.00022073,2]
[388890409,1759471846964,-328.86889852,0.00022073,2]
[388890410,1759471846974,-500.0,0.00022073,2]
[388890411,1759471846983,-500.0,0.00022073,2]
[388890412,1759471846992,-500.0,0.00022073,2]
[388890413,1759471847002,-500.0,0.00022073,2]
[388890414,1759471847011,-500.0,0.00022073,2]
[388890415,1759471847021,-500.0,0.00022073,2]
[388890416,1759471847031,-150.0,0.00022073,2]
[388890417,1759471847041,-462.05325569,0.00022073,2]
[388890418,1759471847051,-500.0,0.00022073,2]
[388890419,1759471847060,-217.14078023,0.00022073,2]
[388890420,1759471847070,-501.6316251,0.00022073,2]
[388890421,1759471847079,-200.0,0.00022073,2]
[388890422,1759471847089,-500.0,0.00022073,2]
[388890423,1759471847100,-500.0,0.00022073,2]
[388890424,1759471847110,-227.12852269,0.00022073,2]
[388890425,1759471847121,-500.0,0.00022073,2]
[388890426,1759471847132,-500.0,0.00022073,2]
[388890427,1759471847142,-150.0,0.00022079,2]
[388890428,1759471847151,-150.0,0.00022079,2]
[388890429,1759471847160,-1000.0,0.00022079,2]
[388890430,1759471847170,-644.0,0.0002208,2]
[388890431,1759471847180,-77636.75498222,0.0002208,2]
[388890432,1759471847192,-22812.3083573,0.0002208,2]
[388890433,1759471847205,-1767.7686502,0.0002208,2]
[388890434,1759471847216,-500.46701949,0.0002208,2]
[388890435,1759471847231,-358.80676578,0.0002208,2]
[388890436,1759471847273,-2445.09886678,0.0002208,2]
[388890437,1759471847286,-532.03,0.0002208,2]
[388890438,1759471847298,-1031.64859331,0.0002208,2]
[388890439,1759471847313,-23043.96702672,0.0002208,2]
[388890440,1759471848403,-786473.4529548,0.0002208,2]
[388890441,1759471848412,-1859.6652951,0.0002208,2]
[388890442,1759471848422,-150.0,0.0002208,2]
[388890443,1759471848431,-48405.0626411,0.0002208,2]
[388890444,1759471848440,-1049.2675916,0.0002208,2]
[388890445,1759471848450,-1433.5355,0.0002208,2]
[388890446,1759471848459,-359.0,0.00022081,2]
[388890447,1759471848468,-359.0,0.00022084,2]
[388890448,1759471848477,-150.91,0.0002209,2]
[388890449,1759471848488,-200.0,0.000221,2]
[388890450,1759471848497,-487.3399791,0.000221,2]
[388890451,1759471848507,-35646.27,0.000221,2]
[388890452,1759471848516,-3226.49,0.000221,2]
[388890453,1759471848525,-4379.51,0.000221,7]
[388890454,1759471848535,-370.55283938,0.000221,7]
[388890455,1759471848544,-600.0,0.0002211,2]
[388890456,1759471848554,-236.80854945,0.0002211,2]
[388890457,1759471848563,-370.55283938,0.00022113,3]
[388890458,1759471848572,-5968.3376139,0.0002215,2]
[388890459,1759471848582,-1564.0,0.0002215,2]